lending/lending_fUSD_20260222
["ID","MTS","AMOUNT","RATE_DAILY","PERIOD"]
[406337053,1771764639502,-500.0,0.0001707,2]
[406337054,1771764639514,-500.0,0.0001707,2]
[406337055,1771764639524,-500.0,0.0001707,2]
[406337056,1771764639534,-500.0,0.0001707,2]
[406337057,1771764639544,-500.0,0.0001707,2]
[406337058,1771764639554,-3500000.0,0.00017071,2]
[406337059,1771764639563,-753.04249929,0.00017089,2]
[406337060,1771764639572,-552.87914705,0.00017089,2]
[406337061,1771764639582,-272.20250359,0.00017098,2]
[406337062,1771764639592,-500.0,0.00017118,2]
[406337063,1771764639601,-467.91494634,0.00017118,2]
[406337064,1771764639611,-500.0,0.00017118,2]
[406337065,1771764639620,-500.0,0.00017118,2]
[406337066,1771764639630,-162.55382438,0.00017118,2]
[406337067,1771764639643,-224.55054318,0.00017118,2]
[406337068,1771764639654,-500.0,0.00017118,2]
[406337069,1771764639665,-195.27117149,0.0001717,2]
[406337070,1771764639675,-997.0,0.00017171,2]
[406337071,1771764639687,-299.99,0.00017171,4]
[406337072,1771764639696,-9999.99,0.00017171,2]
[406337073,1771764639707,-150.99,0.00017171,2]
[406337074,1771764639718,-9999.99,0.00017171,2]
[406337075,1771764639727,-500.0,0.00017173,2]
[406337076,1771764639740,-500.0,0.00017173,2]
[406337077,1771764639750,-500.0,0.00017173,2]
[406337078,1771764639760,-500.0,0.00017173,2]
[406337079,1771764639769,-753.04249929,0.00017191,2]
[406337080,1771764639779,-552.87914705,0.00017191,2]
[406337081,1771764639788,-1499.0,0.00017213,2]
[406337082,1771764639799,-377.02200372,0.00017213,2]
[406337083,1771764639810,-9999.99,0.00017213,2]
[406337084,1771764639820,-150.0,0.00017227,2]
[406337085,1771764639831,-263.6441,0.00017228,2]
[406337086,1771764639843,-2500.0,0.00017228,2]
[406337087,1771764639853,-500.0,0.00017228,2]
[406337088,1771764639863,-500.0,0.00017228,2]
[406337089,1771764639874,-500.0,0.00017228,2]
[406337090,1771764639885,-500.0,0.00017228,2]
[406337091,1771764639897,-901.0,0.00017248,2]
[406337092,1771764639908,-895.0,0.00017252,2]
[406337093,1771764639918,-183.0,0.00017252,2]
[406337094,1771764639927,-500.0,0.00017283,2]
[406337095,1771764639936,-500.0,0.00017283,2]
[406337096,1771764639946,-458.70315985,0.00017283,2]
[406337097,1771764639955,-500.0,0.00017283,2]
[406337098,1771764639966,-753.04249929,0.00017292,2]
[406337099,1771764639977,-165.43649027,0.00017292,2]
[406337100,1771764639987,-552.87914705,0.00017292,2]
[406337101,1771764639998,-151.0,0.00017317,2]
[406337102,1771764640008,-151.0,0.00017317,2]
[406337103,1771764640019,-151.0,0.00017317,2]
[406337104,1771764640028,-500.0,0.00017317,2]
[406337105,1771764640038,-151.0,0.00017317,2]
[406337106,1771764640048,-151.0,0.00017317,2]
[406337107,1771764640058,-282.54357495,0.00017317,2]
[406337108,1771764640069,-151.0,0.00017317,2]
[406337109,1771764640079,-151.0,0.00017317,2]
[406337110,1771764640090,-151.0,0.00017317,2]
[406337111,1771764640099,-151.0,0.00017317,2]
[406337112,1771764640112,-151.0,0.00017317,2]
[406337113,1771764640123,-151.0,0.00017317,2]
[406337117,1771764640308,-304.47590648,0.00017317,2]
[406337118,1771764640318,-151.0,0.00017317,2]
[406337119,1771764640328,-151.0,0.00017317,2]
[406337120,1771764640337,-151.0,0.00017317,2]
[406337121,1771764640347,-500.0,0.00017317,2]
[406337122,1771764640356,-151.0,0.00017317,2]
[406337123,1771764640366,-500.0,0.00017317,2]
[406337124,1771764640376,-509.07170712,0.00017317,2]
[406337125,1771764640386,-500.0,0.00017317,2]
[406337126,1771764640397,-500.0,0.00017317,2]
[406337127,1771764640406,-500.0,0.00017317,2]
[406337128,1771764640417,-500.0,0.00017317,2]
[406337129,1771764640427,-283.03296635,0.00017317,2]
[406337130,1771764640437,-200.0,0.00017317,2]
[406337131,1771764640452,-170.31988359,0.00017317,2]
[406337132,1771764640461,-4131.2128,0.00017328,2]
[406337133,1771764640470,-89491.5931,0.00017328,2]
[406337134,1771764640480,-500.0,0.00017338,2]
[406337135,1771764640491,-500.0,0.00017338,2]
[406337136,1771764640501,-500.0,0.00017338,2]
[406337137,1771764640512,-195.27117149,0.00017353,2]
[406337138,1771764640523,-410.0,0.00017389,2]
[406337139,1771764640534,-500.0,0.00017392,2]
[406337140,1771764640545,-500.0,0.00017392,2]
[406337141,1771764640554,-753.04249929,0.00017393,2]
[406337142,1771764640564,-552.87914705,0.00017393,2]
[406337143,1771764640573,-661.89,0.00017418,3]
[406337144,1771764640583,-718.8125,0.00017428,2]
[406337145,1771764640592,-1000.0,0.00017428,2]
[406337146,1771764640602,-487.0,0.00017428,2]
[406337147,1771764640611,-487.0,0.00017428,2]
[406337148,1771764640620,-487.0,0.00017428,2]
[406337149,1771764640631,-487.0,0.00017428,2]
[406337150,1771764640640,-487.0,0.00017428,2]
[406337151,1771764640650,-487.0,0.00017428,2]
[406337152,1771764640659,-487.0,0.00017428,2]
[406337153,1771764640668,-487.0,0.00017428,2]
[406337154,1771764640678,-487.0,0.00017428,2]
[406337155,1771764640687,-547.56,0.00017428,2]
[406337156,1771764640696,-5462.04607832,0.00017439,2]
[406337157,1771764640706,-500.0,0.00017447,2]
[406337158,1771764640715,-500.0,0.00017447,2]
[406337159,1771764640724,-753.04249929,0.00017495,2]
[406337160,1771764640734,-552.87914705,0.00017495,2]
[406337161,1771764640743,-500.0,0.00017502,2]
[406337162,1771764640752,-1164653.2398,0.00017528,2]
[406337163,1771764640762,-195.27117149,0.00017535,2]
[406337164,1771764640771,-753.04249929,0.00017596,2]
[406337165,1771764640781,-165.43649027,0.00017596,2]
[406337166,1771764640790,-552.87914705,0.00017596,2]
[406337167,1771764640799,-215.0,0.00017626,2]
[406337168,1771764640808,-42309.44585446,0.00017627,2]
[406337169,1771764640817,-500.0,0.00017627,2]
[406337170,1771764640827,-500.0,0.00017627,2]
[406337171,1771764640836,-500.0,0.00017627,2]
[406337172,1771764640846,-500.0,0.00017627,2]
[406337173,1771764640855,-500.0,0.00017627,2]
[406337174,1771764640865,-500.0,0.00017627,2]
[406337175,1771764640874,-500.0,0.00017627,2]
[406337176,1771764640883,-500.0,0.00017627,2]
[406337177,1771764640892,-500.0,0.00017627,2]
[406337178,1771764640902,-211.14640207,0.00017627,2]
[406337179,1771764640911,-753.04249929,0.00017697,2]
[406337180,1771764640921,-552.87914705,0.00017697,2]
[406337181,1771764640930,-1500.0,0.000177,6]
[406337182,1771764640939,-195.27117149,0.00017718,2]
[406337183,1771764640949,-150.0,0.00017726,2]
[406337184,1771764640959,-500.0,0.00017726,2]
[406337185,1771764640969,-150.0,0.00017726,2]
[406337186,1771764640978,-150.0,0.00017726,2]
[406337187,1771764640987,-150.0,0.00017726,2]
[406337188,1771764640998,-150.0,0.00017726,2]
[406337190,1771764641007,-250.90005908,0.00017781,2]
[406337191,1771764641016,-587.38563793,0.00017781,2]
[406337192,1771764641025,-150.0,0.00017781,2]
[406337193,1771764641035,-150.0,0.00017781,2]
[406337194,1771764641044,-150.0,0.00017781,2]
[406337195,1771764641054,-150.0,0.00017781,2]
[406337196,1771764641063,-753.04249929,0.00017799,2]
[406337197,1771764641072,-552.87914705,0.00017799,2]
[406337198,1771764641081,-300.0,0.000178,6]
[406337199,1771764641090,-155.0,0.00017807,2]
[406337200,1771764641100,-534.61239847,0.00017808,2]
[406337201,1771764641109,-534.61239847,0.00017808,2]
[406337202,1771764641118,-534.61239847,0.00017808,2]
[406337203,1771764641127,-534.61239847,0.00017808,2]
[406337204,1771764641137,-534.61239847,0.00017808,2]
[406337205,1771764641146,-534.61239847,0.00017808,2]
[406337206,1771764641156,-534.61239847,0.00017808,2]
[406337207,1771764641165,-534.61239847,0.00017808,2]
[406337208,1771764641175,-534.61239847,0.00017808,2]
[406337209,1771764641184,-534.61239847,0.00017808,2]
[406337210,1771764641193,-534.61239847,0.00017808,2]
[406337211,1771764641203,-534.61239847,0.00017808,2]
[406337212,1771764641213,-534.61239847,0.00017808,2]
[406337213,1771764641222,-534.61239847,0.00017808,2]
[406337214,1771764641232,-534.61239847,0.00017808,2]
[406337215,1771764641241,-534.61239847,0.00017808,2]
[406337216,1771764641251,-539.4725112,0.00017808,2]
[406337217,1771764641260,-539.4725112,0.00017808,2]
[406337218,1771764641270,-539.4725112,0.00017808,2]
[406337219,1771764641279,-539.4725112,0.00017808,2]
[406337220,1771764641289,-539.4725112,0.00017808,2]
[406337221,1771764641299,-539.4725112,0.00017808,2]
[406337222,1771764641309,-539.4725112,0.00017808,2]
[406337223,1771764641318,-539.4725112,0.00017808,2]
[406337224,1771764641328,-539.4725112,0.00017808,2]
[406337225,1771764641337,-539.4725112,0.00017808,2]
[406337226,1771764641347,-539.4725112,0.00017808,2]
[406337227,1771764641358,-600.0,0.00017821,2]
[406337228,1771764641367,-600.0,0.00017821,2]
[406337229,1771764641378,-150.0,0.00017836,2]
[406337230,1771764641388,-150.0,0.00017836,2]
[406337231,1771764641397,-150.0,0.00017836,2]
[406337232,1771764641407,-150.0,0.00017836,2]
[406337233,1771764641416,-150.0,0.0001789,2]
[406337234,1771764641425,-150.0,0.0001789,2]
[406337235,1771764641439,-150.0,0.0001789,2]
[406337236,1771764641452,-150.0,0.0001789,2]
[406337237,1771764641462,-436.56915984,0.000179,2]
[406337238,1771764641471,-300.0,0.000179,6]
[406337239,1771764641481,-753.04249929,0.000179,2]
[406337240,1771764641491,-165.43649027,0.000179,2]
[406337241,1771764641500,-195.27117149,0.000179,2]
[406337242,1771764641510,-552.87914705,0.000179,2]
[406337243,1771764641523,-500.0,0.000179,2]
[406337244,1771764641532,-500.0,0.000179,2]
[406337245,1771764641542,-500.0,0.000179,2]
[406337246,1771764641551,-500.0,0.000179,2]
[406337247,1771764641560,-500.0,0.000179,2]
[406337248,1771764641570,-500.0,0.000179,2]
[406337249,1771764641579,-500.0,0.000179,2]
[406337250,1771764641592,-500.0,0.000179,2]
[406337251,1771764641602,-500.0,0.000179,2]
[406337252,1771764641611,-500.0,0.000179,2]
[406337253,1771764641621,-500.0,0.000179,2]
[406337254,1771764641630,-500.0,0.000179,2]
[406337255,1771764641639,-500.0,0.000179,2]
[406337256,1771764641648,-500.0,0.000179,2]
[406337257,1771764641658,-500.0,0.000179,2]
[406337258,1771764641667,-500.0,0.000179,2]
[406337259,1771764641676,-500.0,0.000179,2]
[406337260,1771764641685,-500.0,0.000179,2]
[406337261,1771764641695,-500.0,0.000179,2]
[406337262,1771764641704,-500.0,0.000179,2]
[406337263,1771764641713,-500.0,0.000179,2]
[406337264,1771764641722,-500.0,0.000179,2]
[406337265,1771764641732,-500.0,0.000179,2]
[406337266,1771764641742,-500.0,0.000179,2]
[406337267,1771764641753,-500.0,0.000179,2]
[406337268,1771764641763,-500.0,0.000179,2]
[406337269,1771764641772,-500.0,0.000179,2]
[406337270,1771764641782,-500.0,0.000179,2]
[406337271,1771764641791,-500.0,0.000179,2]
[406337272,1771764641801,-500.0,0.000179,2]
[406337273,1771764641810,-500.0,0.000179,2]
[406337274,1771764641819,-500.0,0.000179,2]
[406337275,1771764641828,-500.0,0.000179,2]
[406337277,1771764641838,-500.0,0.000179,2]
[406337279,1771764641847,-500.0,0.000179,2]
[406337281,1771764641856,-500.0,0.000179,2]
[406337283,1771764641865,-500.0,0.000179,2]
[406337285,1771764641875,-500.0,0.000179,2]
[406337287,1771764641884,-500.0,0.000179,2]
[406337289,1771764641893,-500.0,0.000179,2]
[406337291,1771764641902,-500.0,0.000179,2]
[406337293,1771764641911,-500.0,0.000179,2]
[406337295,1771764641920,-500.0,0.000179,2]
[406337297,1771764641929,-500.0,0.000179,2]
[406337300,1771764641939,-500.0,0.000179,2]
[406337302,1771764641949,-500.0,0.000179,2]
[406337304,1771764641958,-500.0,0.000179,2]
[406337306,1771764641967,-482.78681073,0.000179,2]
[406337308,1771764641976,-500.0,0.000179,2]
[406337309,1771764641985,-264.39,0.00017922,2]
[406337310,1771764641994,-150.0,0.00017945,2]
[406337311,1771764642003,-150.0,0.00017945,2]
[406337312,1771764642013,-150.0,0.00017945,2]
[406337314,1771764642022,-150.0,0.00017945,2]
[406337317,1771764642032,-226.73826614,0.00017982,2]
[406337319,1771764642041,-500.0,0.00017999,2]
[406337321,1771764642051,-500.0,0.00017999,2]
[406337323,1771764642060,-269.30860549,0.00017999,2]
[406337325,1771764642069,-250.0,0.00018,2]
[406337327,1771764642079,-250.0,0.00018,2]
[406337329,1771764642087,-250.0,0.00018,2]
[406337331,1771764642096,-250.0,0.00018,2]
[406337333,1771764642106,-2066184.12468632,0.00018,2]
[406337335,1771764642121,-63242.47451326,0.00018,2]
[406337337,1771764642132,-678.54918477,0.00018,2]
[406337340,1771764642143,-6321.92014268,0.00018,2]
[406337342,1771764642153,-1972.78274802,0.00018,2]
[406337346,1771764642186,-317846.79722229,0.00018,2]
[406337359,1771764643304,-2600.62297644,0.00018,2]
[406337360,1771764643362,-981.13530181,0.00018,2]
[406337373,1771764646116,-326.09000112,0.00018,2]
[406337406,1771765512369,150.24,0.00011496,2]
[406337407,1771765512694,150.24,0.00011844,2]
[406337408,1771765512736,150.24,0.00012192,2]
[406337409,1771765512935,150.24,0.00012541,2]
[406337410,1771765513140,150.24,0.00012889,2]
[406337411,1771765513353,150.24,0.00013238,2]
[406337412,1771765513547,150.24,0.00013586,2]
[406337413,1771765513763,150.24,0.00013934,2]
[406337414,1771765513950,150.24,0.00014283,2]
[406337415,1771765514150,150.24,0.00014631,2]
[406337416,1771765514424,150.24,0.00014979,2]
[406337417,1771765615430,166.66,0.00014584,2]
[406337418,1771765615631,166.66,0.00014891,2]
[406337419,1771765752126,-200.0,0.00015054,2]
[406337420,1771765752152,-600.0,0.00015126,2]
[406337421,1771765752173,-64.24218879,0.00015199,2]
[406337422,1771765826825,1600.0,0.00014863,2]
[406337423,1771765832248,-102.41781121,0.00015199,2]
[406337424,1771765832258,-300.0,0.00015205,2]
[406337425,1771765832267,-600.0,0.00015205,2]
[406337426,1771765832276,-500.0,0.00015212,2]
[406337427,1771765832287,-5000.0,0.00015225,2]
[406337428,1771765832296,-250.0,0.00015225,2]
[406337429,1771765832305,-300.0,0.00015227,2]
[406337430,1771765832315,-300.0,0.00015227,2]
[406337431,1771765832323,-300.0,0.00015227,2]
[406337432,1771765832333,-200.0,0.00015229,2]
[406337433,1771765832342,-500.0,0.00015246,2]
[406337434,1771765832351,-647.75151942,0.00015246,2]
[406337435,1771765832360,-600.0,0.00015252,2]
[406337436,1771765832370,-195.0,0.00015263,2]
[406337437,1771765832379,-2431.23579823,0.00015291,2]
[406337438,1771765832388,-250.0,0.00015291,2]
[406337439,1771765832397,-150.24,0.00015328,2]
[406337440,1771765832407,-1449.52,0.00015416,2]
[406337441,1771765832416,-195.0,0.00015444,2]
[406337443,1771765832425,-317.13756931,0.00015444,2]
[406337444,1771765832435,-166.66,0.00015506,2]
[406337445,1771765832443,-254.0,0.00015648,2]
[406337446,1771765832454,-306.02200372,0.00015679,2]
[406337447,1771765832463,-217.0,0.00015742,2]
[406337448,1771765832472,-998.0,0.00015769,2]
[406337449,1771765832481,-500.0,0.00015773,2]
[406337450,1771765832490,-218.3314238,0.00015799,2]
[406337451,1771765832501,-87.6685762,0.00015799,2]
[406337452,1771765832512,-473.20812326,0.000158,2]
[406337453,1771765832527,-726.79187674,0.000158,2]
[406337454,1771765832536,-1322.0,0.00015801,2]
[406337455,1771765832545,-166.66,0.00015813,2]
[406337456,1771765832554,-1259.0,0.0001583,2]
[406337457,1771765832563,-300.0,0.00015859,2]
[406337458,1771765832573,-1157.97668131,0.0001586,2]
[406337459,1771765832585,-569.13169042,0.0001586,2]
[406337460,1771765832597,-8272.88162827,0.0001586,2]
[406337461,1771765832607,-160.9,0.00015947,2]
[406337462,1771765832616,-856.96,0.0001602,2]
[406337463,1771765832626,-500.0,0.00016073,2]
[406337464,1771765832636,-550.0,0.00016114,2]
[406337465,1771765832645,-150.0,0.00016114,2]
[406337466,1771765832655,-166.66,0.0001612,2]
[406337467,1771765832664,-241.0,0.00016177,2]
[406337468,1771765832674,-165.43649027,0.00016221,2]
[406337469,1771765832683,-662.07267379,0.00016221,2]
[406337470,1771765832692,-195.2711715,0.00016221,2]
[406337471,1771765832701,-552.87914709,0.00016221,2]
[406337472,1771765832710,-249.02606536,0.00016291,2]
[406337473,1771765832719,-610.11128369,0.00016291,2]
[406337474,1771765832729,-500.0,0.00016291,2]
[406337475,1771765832738,-255.63026545,0.00016291,2]
[406337476,1771765832747,-500.0,0.00016291,2]
[406337477,1771765832757,-500.0,0.00016291,2]
[406337478,1771765832766,-500.0,0.00016291,2]
[406337479,1771765832775,-563.14702534,0.00016291,2]
[406337480,1771765832784,-500.0,0.00016291,2]
[406337481,1771765832794,-500.0,0.00016291,2]
[406337482,1771765832803,-500.0,0.00016291,2]
[406337483,1771765832812,-538.58181298,0.00016291,2]
[406337484,1771765832822,-408.35013263,0.00016291,2]
[406337485,1771765832831,-405.21030131,0.00016291,2]
[406337486,1771765832840,-263.7555946,0.00016291,2]
[406337487,1771765832849,-500.0,0.00016291,2]
[406337488,1771765832859,-404.38214481,0.00016291,2]
[406337489,1771765832868,-538.58181298,0.00016291,2]
[406337490,1771765832877,-500.0,0.00016291,2]
[406337491,1771765832886,-500.0,0.00016291,2]
[406337492,1771765832896,-538.58181298,0.00016291,2]
[406337493,1771765832905,-500.0,0.00016291,2]
[406337494,1771765832914,-538.58181298,0.00016291,2]
[406337495,1771765832924,-597.63932927,0.00016291,2]
[406337496,1771765832933,-500.0,0.00016291,2]
[406337497,1771765832942,-538.58181298,0.00016291,2]
[406337498,1771765832951,-538.58181298,0.00016291,2]
[406337499,1771765832960,-500.0,0.00016291,2]
[406337500,1771765832969,-538.58181298,0.00016291,2]
[406337501,1771765832978,-538.58181298,0.00016291,2]
[406337502,1771765832987,-538.58181298,0.00016291,2]
[406337503,1771765832997,-538.58181298,0.00016291,2]
[406337504,1771765833006,-538.58181298,0.00016291,2]
[406337505,1771765833015,-538.58181298,0.00016291,2]
[406337506,1771765833024,-538.58181298,0.00016291,2]
[406337507,1771765833033,-538.58181298,0.00016291,2]
[406337508,1771765833042,-500.0,0.00016291,2]
[406337509,1771765833052,-538.58181298,0.00016291,2]
[406337510,1771765833061,-538.58181298,0.00016291,2]
[406337511,1771765833070,-538.58181298,0.00016291,2]
[406337512,1771765833080,-538.58181298,0.00016291,2]
[406337513,1771765833094,-538.58181298,0.00016291,2]
[406337514,1771765833103,-538.58181298,0.00016291,2]
[406337515,1771765833112,-538.58181298,0.00016291,2]
[406337516,1771765833121,-538.58181298,0.00016291,2]
[406337517,1771765833131,-538.58181298,0.00016291,2]
[406337518,1771765833144,-538.58181298,0.00016291,2]
[406337519,1771765833153,-538.58181298,0.00016291,2]
[406337520,1771765833163,-538.58181298,0.00016291,2]
[406337521,1771765833173,-538.58181298,0.00016291,2]
[406337522,1771765833182,-538.58181298,0.00016291,2]
[406337523,1771765833192,-538.58181298,0.00016291,2]
[406337524,1771765833202,-538.58181298,0.00016291,2]
[406337525,1771765833212,-538.58181298,0.00016291,2]
[406337526,1771765833222,-538.58181298,0.00016291,2]
[406337527,1771765833232,-538.58181298,0.00016291,2]
[406337528,1771765833241,-538.58181298,0.00016291,2]
[406337529,1771765833251,-538.58181298,0.00016291,2]
[406337530,1771765833261,-538.58181298,0.00016291,2]
[406337531,1771765833271,-538.58181298,0.00016291,2]
[406337532,1771765833280,-538.58181298,0.00016291,2]
[406337533,1771765833290,-538.58181298,0.00016291,2]
[406337534,1771765833299,-538.58181298,0.00016291,2]
[406337535,1771765833309,-538.58181298,0.00016291,2]
[406337536,1771765833319,-538.58181298,0.00016291,2]
[406337537,1771765833329,-538.58181298,0.00016291,2]
[406337538,1771765833339,-538.58181298,0.00016291,2]
[406337539,1771765833348,-538.58181298,0.00016291,2]
[406337540,1771765833357,-538.58181298,0.00016291,2]
[406337541,1771765833367,-538.58181298,0.00016291,2]
[406337542,1771765833377,-538.58181298,0.00016291,2]
[406337543,1771765833387,-538.58181298,0.00016291,2]
[406337544,1771765833396,-538.58181298,0.00016291,2]
[406337545,1771765833406,-538.58181298,0.00016291,2]
[406337546,1771765833415,-233.07103658,0.00016291,2]
[406337547,1771765833425,-537.61726765,0.00016291,2]
[406337548,1771765833435,-537.61726765,0.00016291,2]
[406337549,1771765833444,-537.61726765,0.00016291,2]
[406337550,1771765833453,-537.61726765,0.00016291,2]
[406337551,1771765833462,-537.61726765,0.00016291,2]
[406337552,1771765833472,-537.61726765,0.00016291,2]
[406337553,1771765833481,-537.61726765,0.00016291,2]
[406337554,1771765833491,-537.61726765,0.00016291,2]
[406337555,1771765833500,-537.61726765,0.00016291,2]
[406337556,1771765833510,-537.61726765,0.00016291,2]
[406337557,1771765833519,-537.61726765,0.00016291,2]
[406337558,1771765833528,-537.61726765,0.00016291,2]
[406337559,1771765833537,-537.61726765,0.00016291,2]
[406337560,1771765833546,-537.61726765,0.00016291,2]
[406337561,1771765833555,-537.61726765,0.00016291,2]
[406337562,1771765833565,-537.61726765,0.00016291,2]
[406337563,1771765833574,-537.61726765,0.00016291,2]
[406337564,1771765833584,-537.61726765,0.00016291,2]
[406337565,1771765833593,-537.61726765,0.00016291,2]
[406337566,1771765833603,-537.61726765,0.00016291,2]
[406337567,1771765833613,-537.61726765,0.00016291,2]
[406337568,1771765833622,-537.61726765,0.00016291,2]
[406337569,1771765833631,-537.61726765,0.00016291,2]
[406337570,1771765833641,-537.61726765,0.00016291,2]
[406337571,1771765833650,-537.61726765,0.00016291,2]
[406337572,1771765833659,-537.61726765,0.00016291,2]
[406337573,1771765833669,-537.61726765,0.00016291,2]
[406337574,1771765833678,-537.61726765,0.00016291,2]
[406337575,1771765833688,-537.61726765,0.00016291,2]
[406337576,1771765833697,-537.61726765,0.00016291,2]
[406337577,1771765833707,-537.61726765,0.00016291,2]
[406337578,1771765833717,-537.61726765,0.00016291,2]
[406337579,1771765833726,-537.61726765,0.00016291,2]
[406337580,1771765833735,-832.41870659,0.00016291,2]
[406337581,1771765833744,-832.41870659,0.00016291,2]
[406337582,1771765833753,-832.41870659,0.00016291,2]
[406337583,1771765833763,-1332.41870658,0.00016291,2]
[406337584,1771765833772,-535530.28631851,0.00016292,2]
[406337586,1771765838296,-3539.60987304,0.00016292,2]
[406337587,1771765838353,-2960930.10380845,0.00016292,2]
[406337588,1771765838363,-552.87914705,0.00016293,2]
[406337589,1771765838373,-1000.0,0.00016321,2]
[406337590,1771765838382,-1126.0,0.0001633,2]
[406337591,1771765838392,-552.87914705,0.00016365,2]
[406337592,1771765838402,-2863.46,0.00016391,2]
[406337593,1771765838412,-9999.99,0.00016391,2]
[406337594,1771765838421,-999.99,0.00016391,2]
[406337595,1771765838431,-9999.99,0.00016391,2]
[406337596,1771765838440,-150.99,0.00016391,2]
[406337597,1771765838450,-299.99,0.00016391,4]
[406337598,1771765838460,-9999.99,0.00016391,2]
[406337599,1771765838469,-150.0,0.00016421,2]
[406337600,1771765838481,-150.0,0.00016421,2]
[406337601,1771765838490,-500.0,0.00016421,2]
[406337602,1771765838500,-500.0,0.00016421,2]
[406337603,1771765838510,-500.0,0.00016421,2]
[406337604,1771765838519,-500.0,0.00016421,2]
[406337605,1771765838529,-500.0,0.00016421,2]
[406337606,1771765838538,-150.0,0.00016421,2]
[406337607,1771765838548,-150.0,0.00016421,2]
[406337608,1771765838558,-552.87914705,0.00016438,2]
[406337609,1771765838567,-5000.0,0.00016438,2]
[406337610,1771765838577,-150.0,0.00016476,2]
[406337611,1771765838587,-500.0,0.00016476,2]
[406337612,1771765838596,-500.0,0.00016476,2]
[406337613,1771765838605,-500.0,0.00016476,2]
[406337614,1771765838615,-500.0,0.00016476,2]
[406337615,1771765838624,-500.0,0.00016476,2]
[406337617,1771765838634,-200.0,0.000165,6]
[406337619,1771765838643,-552.87914705,0.0001651,2]
[406337621,1771765838653,-500.0,0.00016525,2]
[406337623,1771765838662,-500.0,0.00016525,2]
[406337624,1771765838672,-296.46563881,0.00016531,2]
[406337625,1771765838681,-500.0,0.00016531,2]
[406337626,1771765838691,-500.0,0.00016531,2]
[406337627,1771765838700,-500.0,0.00016531,2]
[406337628,1771765838711,-500.0,0.00016531,2]
[406337629,1771765838720,-500.0,0.00016531,2]
[406337630,1771765838730,-785.90522772,0.00016555,2]
[406337631,1771765838741,-195.27117149,0.00016557,2]
[406337632,1771765838751,-600.0,0.00016559,2]
[406337633,1771765838761,-198.66323241,0.00016559,2]
[406337634,1771765838770,-500.0,0.0001658,2]
[406337635,1771765838780,-500.0,0.0001658,2]
[406337636,1771765838789,-552.87914705,0.00016582,2]
[406337637,1771765838799,-500.0,0.00016585,2]
[406337638,1771765838808,-467.91494634,0.00016585,2]
[406337639,1771765838818,-500.0,0.00016585,2]
[406337640,1771765838828,-500.0,0.00016585,2]
[406337641,1771765838837,-162.55382438,0.00016585,2]
[406337642,1771765838847,-202.72864747,0.00016595,2]
[406337643,1771765838856,-150.0,0.00016595,2]
[406337644,1771765838865,-500.0,0.00016595,2]
[406337645,1771765838875,-150.0,0.00016595,2]
[406337646,1771765838884,-150.0,0.00016595,2]
[406337647,1771765838894,-150.0,0.00016595,2]
[406337648,1771765838903,-150.0,0.00016595,2]
[406337649,1771765838915,-150.0,0.00016595,2]
[406337650,1771765838924,-4131.2128,0.00016599,2]
[406337651,1771765838934,-89491.5931,0.00016599,2]
[406337652,1771765838943,-500.0,0.000166,6]
[406337653,1771765838952,-2500.0,0.000166,2]
[406337654,1771765838962,-718.8125,0.000166,2]